bitfinex/quotes_ETHUSD_20240816
["timestamp","ask_amount","ask_price","bid_price","bid_amount"]
[1723814909536,3.83518,2607.5,2607.0,0.03497676]
[1723814909885,3.83487,2607.7,2607.1,2.3659]
[1723814910065,3.83521,2607.5,2607.2,0.55]
[1723814910367,3.83521,2607.5,2607.2,0.58495605]
[1723814910368,4.218731,2607.5,2607.2,0.58495605]
[1723814910680,3.83538,2607.3,2607.2,0.58495605]
[1723814911267,3.83537,2607.4,2607.2,0.58495605]
[1723814911641,7.67073,2607.4,2607.2,0.58495605]
[1723814911843,3.83536,2607.4,2607.2,0.58495605]
[1723814912758,3.83532,2607.4,2607.2,0.58495605]
[1723814912970,4.2572641,2607.3,2607.2,0.58495605]
[1723814913173,7.67076,2607.3,2607.2,0.58495605]
[1723814913372,7.67076,2607.3,2607.2,0.03495605]
[1723814913578,3.83577,2607.1,2606.7,2.4481]
[1723814913783,3.83577,2607.1,2606.8,0.03473838]
[1723814914082,3.83597,2606.9,2606.7,2.4481]
[1723814914290,3.83612,2606.8,2606.2,2.4481]
[1723814914574,7.67206,2606.9,2606.2,6.28508]
[1723814914793,0.273812,2607.5,2606.4,2.4481]
[1723814914794,4.108992,2607.5,2606.4,2.4481]
[1723814915081,3.83546,2607.3,2606.7,3.83613]
[1723814915382,3.83546,2607.3,2606.6,3.83633]
[1723814915563,3.83561,2607.2,2606.7,3.0]
[1723814915732,3.83561,2607.2,2606.6,3.0]
[1723814915934,3.8351,2607.5,2606.8,3.83611]
[1723814916135,3.8351,2607.5,2606.7,0.55]
[1723814916136,3.83538,2607.3,2607.0,2.4691]
[1723814916374,3.83538,2607.3,2607.1,0.55]
[1723814916534,3.83553,2607.2,2607.1,0.55]
[1723814916735,4.218918,2607.3,2607.1,0.55]
[1723814916940,3.83538,2607.3,2606.9,0.55]
[1723814917151,3.83565,2607.2,2606.9,0.55]
[1723814917380,3.83565,2607.2,2606.9,0.60021011]
[1723814917650,3.83538,2607.3,2606.9,0.60021011]
[1723814919036,3.83555,2607.2,2606.9,0.60021011]
[1723814919236,3.83538,2607.3,2606.9,0.60021011]
[1723814919486,3.83562,2607.2,2606.9,0.60021011]
[1723814919653,3.83568,2607.1,2606.9,0.60021011]
[1723814920190,3.83582,2607.0,2606.9,0.05021011]
[1723814920336,3.83558,2607.2,2606.5,6.21413]
[1723814920537,3.83547,2607.3,2606.7,3.83619]
[1723814920777,3.83555,2607.2,2606.5,6.45184]
[1723814920974,3.83529,2607.4,2606.5,6.45184]
[1723814920975,3.83538,2607.3,2606.7,3.83619]
[1723814921175,3.83457,2607.9,2606.8,2.7387379]
[1723814921176,3.83499,2607.6,2606.8,2.7387379]
[1723814921344,3.83539,2607.3,2606.9,0.55]
[1723814921544,7.67031,2607.5,2606.9,0.55]
[1723814921745,3.83539,2607.3,2606.9,0.55]
[1723814921950,3.83513,2607.5,2606.9,0.55]
[1723814922146,3.83531,2607.4,2606.9,0.55]
[1723814923535,3.83469,2607.8,2606.9,0.55]
[1723814923536,0.06666121,2608.1,2607.6,3.83494]
[1723814923759,3.83378,2608.4,2607.7,6.82758]
[1723814923972,7.66765,2608.4,2607.7,6.82758]
[1723814924187,3.83378,2608.4,2607.7,2.9929]
[1723814924699,0.40021379,2608.5,2607.7,2.9929]
[1723814924700,3.83417,2608.2,2607.7,2.9929]
[1723814924917,3.8338,2608.4,2607.7,2.9929]
[1723814925057,0.40021379,2608.5,2607.8,3.83464]
[1723814925258,0.40021379,2608.5,2608.0,3.83425]
[1723814925509,3.83296,2609.0,2608.2,6.25685]
[1723814925664,3.83303,2608.9,2608.2,6.25685]
[1723814925856,3.83296,2609.0,2608.3,0.55]
[1723814926154,0.4003405,2609.1,2608.7,2.2858]
[1723814926358,3.83266,2609.2,2608.8,0.55]
[1723814926611,4.61910669,2609.2,2608.8,0.55]
[1723814926783,8.45180669,2609.2,2608.8,0.55]
[1723814926989,0.78644669,2609.2,2608.8,0.55]
[1723814927161,3.83303,2608.9,2608.8,0.55]
[1723814927357,3.83309,2608.9,2608.0,2.4867]
[1723814927554,3.83355,2608.6,2608.0,2.4867]
[1723814927999,3.83333,2608.7,2608.0,6.32096]
[1723814928206,4.216509,2608.8,2608.0,2.4867]
[1723814928355,4.216509,2608.8,2608.0,6.32096]
[1723814928356,0.4216509,2608.7,2608.0,6.32096]
[1723814928557,3.83292,2609.0,2608.1,3.0]
[1723814928796,3.83292,2609.0,2608.3,3.83382]
[1723814929001,3.83292,2609.0,2608.4,3.55]
[1723814929213,3.83292,2609.0,2608.3,3.0]
[1723814929499,3.83304,2608.9,2608.4,0.55]
[1723814930003,0.383292,2609.0,2608.4,4.38375]
[1723814930157,3.83305,2608.9,2608.4,0.55]
[1723814930360,3.83297,2609.0,2608.4,0.55]
[1723814930764,7.66597,2609.0,2608.4,0.55]
[1723814931072,4.599567,2609.0,2608.4,0.55]
[1723814931292,3.83297,2609.0,2608.4,0.55]
[1723814931815,7.66594,2609.0,2608.4,0.55]
[1723814932185,3.83297,2609.0,2608.4,0.55]
[1723814932905,3.83303,2608.9,2608.4,0.55]
[1723814933316,3.83297,2609.0,2608.4,0.55]
[1723814933610,3.83333,2608.7,2608.3,3.0]
[1723814933806,3.83333,2608.7,2608.0,2.4867]
[1723814934012,3.83333,2608.7,2608.0,5.4867]
[1723814934013,3.83359,2608.6,2608.0,5.4867]
[1723814934225,4.600392,2608.5,2608.0,5.4867]
[1723814934523,3.8337,2608.5,2608.0,2.4867]
[1723814934837,3.83359,2608.6,2608.0,2.4867]
[1723814935200,3.83379,2608.4,2608.0,2.4867]
[1723814935383,4.600528,2608.4,2608.0,2.4867]
[1723814936395,3.83328,2608.8,2608.0,6.32104]
[1723814936602,3.83267,2609.2,2608.1,3.07668067]
[1723814936912,3.83274,2609.1,2608.3,2.4971]
[1723814937083,4.448737,2609.2,2608.4,4.38364]
[1723814937281,4.448737,2609.2,2608.6,3.83347]
[1723814937533,0.4448737,2609.1,2608.7,0.55]
[1723814937824,3.8329,2609.0,2608.4,7.38365]
[1723814938332,3.83328,2608.8,2608.4,3.55]
[1723814938493,3.83366,2608.5,2608.3,2.4971]
[1723814938697,4.216728,2608.7,2608.3,2.4971]
[1723814939419,4.216728,2608.7,2608.0,9.31523]
[1723814939620,0.4216728,2608.6,2608.0,13.1495]
[1723814939824,0.4216728,2608.6,2608.0,9.31517]
[1723814940029,0.4216728,2608.6,2608.1,0.55]
[1723814940185,0.4216728,2608.6,2607.0,42.45]
[1723814940186,3.83369,2608.5,2608.0,0.55]
[1723814940391,4.217059,2608.5,2607.9,3.8345]
[1723814940595,3.8332,2608.8,2608.2,2.3244]
[1723814940936,3.83349,2608.6,2608.3,0.55]
[1723814941111,0.766684,2608.5,2608.3,0.55]
[1723814941315,0.24467,2609.0,2608.3,0.55]
[1723814941516,4.07762,2609.0,2608.3,4.38383]
[1723814941700,2.2619,2609.4,2608.3,0.55]
[1723814941907,3.83297,2609.0,2608.4,3.83376]
[1723814942198,3.83327,2608.8,2608.5,0.55]
[1723814942449,0.383327,2608.7,2608.3,3.55]
[1723814942595,3.83298,2609.0,2608.4,3.83368]
[1723814942938,3.83298,2609.0,2608.5,0.55]
[1723814943223,3.83274,2609.1,2608.5,4.38361]
[1723814943526,4.621901,2609.1,2608.5,4.38361]
[1723814943891,3.83288,2609.0,2608.5,0.55]
[1723814944215,0.789161,2609.1,2608.5,3.8336]
[1723814944412,4.3176721,2609.1,2608.6,2.9631]
[1723814944590,3.83201,2609.6,2608.8,3.83309]
[1723814944786,3.83177,2609.8,2609.1,3.83272]
[1723814944990,3.83149,2610.0,2609.2,3.83259]
[1723814945211,3.83149,2610.0,2609.3,0.55]
[1723814945212,0.29132084,2610.0,2609.3,0.55]
[1723814945461,3.8312,2610.2,2609.4,3.83228]
[1723814945593,0.40043329,2610.6,2607.9,2.292]
[1723814945594,3.83349,2608.6,2607.9,2.292]
[1723814945789,3.83349,2608.6,2607.6,2.292]
[1723814946087,3.83363,2608.5,2607.7,4.447398]
[1723814946311,0.50536229,2608.6,2607.7,0.612708]
[1723814946508,3.83358,2608.6,2607.8,3.83453]
[1723814946712,3.83363,2608.5,2607.7,3.83477]
[1723814946948,3.83347,2608.6,2607.8,3.83462]
[1723814947158,3.83347,2608.6,2607.9,3.83446]
[1723814947319,2.3579,2609.2,2608.0,2.2754]
[1723814947522,2.3579,2609.2,2607.9,0.94320506]
[1723814947523,3.83174,2609.8,2608.8,3.83317]
[1723814947854,2.3579,2610.1,2609.1,2.2754]
[1723814947855,3.83198,2609.7,2609.1,2.2754]
[1723814948039,3.83198,2609.7,2609.2,0.55]
[1723814948560,4.06721,2610.0,2609.2,0.55]
[1723814948707,0.40032539,2610.3,2609.3,3.83242]
[1723814948708,4.23136539,2610.3,2609.3,3.83242]
[1723814948907,3.83126,2610.2,2609.4,0.55]
[1723814949154,4.25439654,2610.2,2609.4,4.38229]
[1723814949347,4.25439654,2610.2,2609.5,6.09165]
[1723814949553,4.25439654,2610.2,2609.6,0.55]
[1723814950060,3.83157,2609.9,2609.6,0.55]
[1723814950344,3.83157,2609.9,2609.4,3.55]
[1723814951048,3.8318,2609.8,2609.4,3.55]
[1723814951255,3.83157,2609.9,2609.4,3.55]
[1723814951556,3.83185,2609.8,2609.4,3.55]
[1723814951717,3.83145,2610.0,2609.4,3.55]
[1723814952254,3.83156,2609.9,2609.4,3.55]
[1723814952413,3.83136,2610.1,2609.4,3.55]
[1723814952750,3.83117,2610.2,2609.4,4.14366]
[1723814952923,3.83151,2610.0,2609.4,3.55]
[1723814953134,7.66241,2610.2,2609.4,3.55]
[1723814953315,3.83117,2610.2,2609.4,8.359172]
[1723814953517,3.83128,2610.1,2609.4,8.359172]
[1723814953953,0.62069,2610.4,2609.3,2.3866]
[1723814954140,3.83274,2609.1,2608.9,2.4513]
[1723814954765,3.83274,2609.1,2608.4,2.4513]
[1723814955538,3.83246,2609.3,2608.4,2.4513]
[1723814955539,3.83246,2609.3,2608.6,3.83345]
[1723814955745,3.83216,2609.5,2608.9,2.426]
[1723814956139,7.66385,2609.7,2608.9,6.25894]
[1723814956446,3.83163,2609.9,2609.2,3.83249]
[1723814956630,3.83163,2609.9,2609.3,2.4657]
[1723814956829,3.8318,2609.8,2609.4,0.55]
[1723814957077,3.8315,2610.0,2609.4,0.55]
[1723814957430,3.83132,2610.1,2609.4,0.55]
[1723814957631,3.83115,2610.2,2609.4,3.62663681]
[1723814957929,3.83128,2610.1,2609.5,2.4657]
[1723814958160,3.83128,2610.1,2609.6,0.55]
[1723814958370,7.66333,2609.9,2609.6,0.55]
[1723814958580,3.83162,2609.9,2609.6,0.55]
[1723814958726,3.83099,2610.3,2609.6,0.55]
[1723814959242,3.83122,2610.2,2609.6,0.55]
[1723814959570,7.6637,2609.7,2609.6,0.55]
[1723814959741,3.83185,2609.7,2609.6,0.55]
[1723814960764,3.83231,2609.4,2609.2,5.2737]
[1723814960973,3.83231,2609.4,2609.2,2.2737]
[1723814961532,3.83202,2609.6,2609.2,2.2737]
[1723814962068,3.83216,2609.5,2609.2,2.2737]
[1723814962267,3.8322,2609.5,2609.3,0.55]
[1723814963056,3.83202,2609.6,2609.3,0.55]
[1723814963261,3.83229,2609.4,2609.3,0.55]
[1723814963479,7.66458,2609.4,2609.3,0.55]
[1723814963792,3.83229,2609.4,2609.3,0.55]
[1723814963928,7.66355,2609.8,2609.3,0.55]
[1723814964133,7.66355,2609.8,2609.2,0.55]
[1723814964134,4.598095,2609.8,2609.2,0.55]
[1723814964333,3.8319,2609.7,2609.2,0.55]
[1723814964827,3.8319,2609.7,2609.1,3.55]
[1723814965175,3.83131,2610.1,2609.1,0.55]
[1723814965475,3.83231,2609.4,2609.1,0.55]
[1723814966755,3.83204,2609.6,2609.1,0.55]
[1723814966950,3.83204,2609.6,2609.1,1.14247]
[1723814967576,3.83233,2609.4,2609.1,0.55]
[1723814968152,3.83233,2609.4,2609.0,3.0]
[1723814968153,3.83273,2609.1,2609.0,3.0]
[1723814968497,3.83273,2609.1,2608.9,2.3747]
[1723814968645,2.4144,2610.5,2609.1,2.4859]
[1723814968861,2.39541479,2610.7,2609.1,2.4859]
[1723814968862,3.83106,2610.3,2609.5,3.83207]
[1723814969162,3.8307,2610.5,2609.6,3.0]
[1723814969348,0.28619938,2610.6,2609.6,7.38055]
[1723814969552,3.8307,2610.5,2609.8,3.83162]
[1723814969863,4.11681938,2610.6,2609.9,0.55]
[1723814970051,3.83062,2610.6,2609.9,4.38156]
[1723814970252,3.83069,2610.5,2609.9,0.55]
[1723814970601,3.83043,2610.7,2610.0,7.66263]
[1723814970746,3.83043,2610.7,2610.1,0.55]
[1723814970949,3.83012,2610.9,2610.2,2.56251859]
[1723814971152,3.82983,2611.1,2610.3,0.55]
[1723814971384,3.82983,2611.1,2610.3,3.55]
[1723814971604,4.22961386,2611.3,2610.5,6.31652]
[1723814971605,0.40004386,2611.3,2610.5,6.31652]
[1723814971765,3.82945,2611.4,2610.7,3.83025]
[1723814971964,3.82954,2611.3,2610.5,6.31647]
[1723814972163,3.82995,2611.0,2610.6,3.0]
[1723814972368,3.8291,2611.6,2610.7,0.55]
[1723814972369,3.82975,2611.2,2610.7,0.55]
[1723814972606,3.8298,2611.1,2610.7,0.55]
[1723814972898,3.83024,2610.8,2610.7,0.55]
[1723814973053,3.82999,2611.0,2610.7,0.55]
[1723814973248,3.82938,2611.4,2610.7,0.55]
[1723814973498,3.82953,2611.3,2610.8,2.4339]
[1723814973657,3.82975,2611.2,2610.9,0.55]
[1723814973848,3.82984,2611.1,2610.9,0.55]
[1723814974047,0.765937,2611.1,2610.9,0.55]
[1723814974251,3.82953,2611.3,2610.9,0.55]
[1723814975051,3.8298,2611.1,2610.9,0.55]
[1723814975399,3.82995,2611.0,2610.9,0.55]
[1723814975550,3.82995,2611.0,2610.7,0.55]
[1723814975763,3.8298,2611.1,2610.7,0.55]
[1723814975988,3.82957,2611.3,2610.7,0.55]
[1723814976186,3.82897,2611.7,2611.0,2.405]
[1723814976394,2.428,2611.9,2611.1,0.55]
[1723814976395,3.82944,2611.4,2611.1,0.55]
[1723814976797,3.82934,2611.5,2611.1,0.55]
[1723814977116,4.07161,2611.8,2611.1,0.55]
[1723814977396,3.82893,2611.7,2611.1,4.37971]
[1723814977594,3.82881,2611.8,2611.1,0.55]
[1723814977899,3.82708,2613.0,2611.1,0.55]
[1723814977900,3.82854,2612.0,2611.2,6.09727]
[1723814978103,3.82868,2611.9,2611.3,3.55]
[1723814978396,3.82854,2612.0,2611.4,3.82932]
[1723814978549,0.382854,2612.0,2611.5,0.55]
[1723814978758,2.4926,2612.6,2611.5,3.55]
[1723814978991,3.82907,2611.6,2611.5,0.55]
[1723814979300,3.82938,2611.4,2611.3,0.55]
[1723814979470,3.82907,2611.6,2611.3,0.55]
[1723814979792,0.382907,2611.5,2611.3,0.55]
[1723814979964,3.82922,2611.5,2611.3,0.55]
[1723814980378,3.82899,2611.7,2611.3,0.55]
[1723814980597,3.82847,2612.1,2611.3,4.37942]
[1723814980788,2.6621069,2612.5,2611.5,3.82913]
[1723814980789,3.82829,2612.2,2611.5,3.82913]
[1723814981118,3.82829,2612.2,2611.4,3.28177]
[1723814981119,3.82837,2612.1,2611.6,0.55]
[1723814981268,3.82814,2612.3,2611.6,0.55]
[1723814981461,3.82864,2611.9,2611.5,0.55]
[1723814981654,3.82864,2611.9,2611.4,0.55]
[1723814982269,3.82886,2611.8,2611.4,0.55]
[1723814983465,7.65734,2611.9,2611.4,0.55]
[1723814983859,3.82864,2611.9,2611.4,0.55]
[1723814984062,3.82886,2611.8,2611.4,0.55]
[1723814984511,3.82864,2611.9,2611.4,0.55]
[1723814984798,3.82902,2611.7,2611.4,0.55]
[1723814985029,4.211034,2612.2,2610.7,2.3304]
[1723814985030,2.2608,2612.0,2610.7,2.3304]
[1723814985188,3.82841,2612.1,2611.2,2.3304]
[1723814985499,3.82832,2612.2,2611.4,3.82928]
[1723814985670,3.82868,2611.9,2611.3,3.82937]
[1723814985875,3.82878,2611.8,2611.2,2.3304]
[1723814986212,3.82857,2612.0,2611.3,3.8295]
[1723814986387,3.82857,2612.0,2611.2,6.15996]
[1723814986388,3.82807,2612.3,2611.7,3.82883]
[1723814986705,3.82807,2612.3,2611.8,3.55]
[1723814987099,3.82812,2612.3,2611.8,3.55]
[1723814987313,3.8282,2612.2,2611.8,0.55]
[1723814987615,3.82812,2612.3,2611.8,0.55]
[1723814987903,3.82775,2612.5,2611.9,2.4113]
[1723814988063,3.82827,2612.2,2612.0,0.55]
[1723814988263,3.82798,2612.4,2612.0,3.55]
[1723814988485,4.210768,2612.4,2612.0,3.55]
[1723814988803,4.210708,2612.4,2612.0,3.55]
[1723814988957,3.82791,2612.4,2612.0,3.55]
[1723814989162,7.65589,2612.4,2612.0,3.55]
[1723814989394,3.82791,2612.4,2612.0,3.55]
[1723814989590,3.8277,2612.6,2612.0,3.55]
[1723814989591,7.65542,2612.6,2612.0,3.55]
[1723814989796,3.82769,2612.6,2612.0,8.357469]
[1723814990006,7.6554,2612.6,2612.0,8.357469]
[1723814990219,3.82799,2612.4,2612.0,3.55]
[1723814990508,3.82776,2612.5,2612.0,3.55]
[1723814990716,3.82776,2612.5,2612.0,4.528997]
[1723814990871,3.82813,2612.3,2612.0,3.55]
[1723814991072,3.82848,2612.0,2611.4,3.82926]
[1723814991298,7.65715,2612.0,2611.5,2.4102]
[1723814991506,3.82863,2611.9,2611.5,5.4102]
[1723814991831,7.65798,2611.7,2611.2,2.60814]
[1723814991989,3.82897,2611.7,2611.2,2.3751]
[1723814992194,7.65798,2611.7,2611.2,2.3751]
[1723814992391,3.82897,2611.7,2611.2,2.3751]
[1723814992601,4.45393058,2611.9,2611.2,6.20467]
[1723814992820,3.82873,2611.9,2611.2,7.208123]
[1723814992977,3.82843,2612.1,2611.3,2.3516]
[1723814993174,3.82783,2612.5,2611.4,0.07657601]
[1723814993376,3.82763,2612.6,2612.1,2.3516]
[1723814993680,3.82763,2612.6,2612.1,2.969599]
[1723814993991,3.82736,2612.8,2612.2,4.37817]
[1723814994304,3.82736,2612.8,2612.2,0.55]
[1723814994505,7.6548,2612.8,2612.2,0.55]
[1723814994689,3.82725,2612.9,2612.2,7.37818]
[1723814995016,3.82733,2612.8,2612.2,7.37818]
[1723814995245,3.82715,2613.0,2612.3,0.07655579]
[1723814995556,3.82715,2613.0,2612.2,7.37812]
[1723814995557,0.6002839,2613.4,2612.4,0.55]
[1723814995705,6.14681,2613.0,2612.2,3.55]
[1723814996031,3.82755,2612.7,2612.2,3.55]
[1723814996240,3.82724,2612.9,2612.2,7.3781]
[1723814996446,0.382724,2612.9,2612.2,7.37812]
[1723814996753,3.82725,2612.9,2612.2,7.37809]
[1723814996904,3.82732,2612.8,2612.2,7.37809]
[1723814997251,3.82732,2612.8,2612.2,3.55]
[1723814997453,7.65421,2613.0,2612.3,3.82802]
[1723814997623,7.65421,2613.0,2612.4,3.55]
[1723814998250,3.82707,2613.0,2612.4,3.55]
[1723814998436,3.82739,2612.8,2612.4,0.55]
[1723814998755,3.82739,2612.8,2612.2,6.82817]
[1723814998756,7.65478,2612.8,2612.3,0.55]
[1723814998906,0.67464339,2613.2,2612.3,1.522985]
[1723814998907,3.82709,2613.0,2612.3,1.522985]
[1723814999108,0.67464339,2613.2,2612.3,1.522985]
[1723814999346,3.82718,2612.9,2612.3,0.55]
[1723814999645,3.82732,2612.8,2612.3,0.55]
[1723814999831,3.82718,2612.9,2612.3,0.55]
[1723815000037,3.82694,2613.1,2612.3,4.37802]
[1723815000222,6.23806,2613.6,2612.5,2.4528]
[1723815000223,0.623824,2613.4,2612.5,2.4528]
[1723815000433,3.82608,2613.7,2613.1,3.82687]
[1723815000617,3.82608,2613.7,2613.0,3.82697]
[1723815000618,3.82624,2613.6,2613.0,3.82697]
[1723815000840,3.82636,2613.5,2613.1,0.55]
[1723815001112,3.82666,2613.3,2613.1,0.55]
[1723815001330,3.82646,2613.4,2612.9,0.55]
[1723815001659,3.82681,2613.2,2612.9,0.55]
[1723815001810,3.82637,2613.5,2612.9,0.55]
[1723815002154,3.82637,2613.5,2613.0,2.2748]
[1723815002323,3.82668,2613.3,2613.1,0.55]
[1723815002520,0.06655839,2614.4,2613.1,0.55]
[1723815002521,8.036108,2613.2,2613.1,0.55]
[1723815002731,2.2539,2613.6,2612.2,2.2748]
[1723815002965,4.087,2614.3,2611.9,6.10334]
[1723815002966,3.8274,2612.8,2611.9,6.10334]
[1723815003189,3.8274,2612.8,2612.0,3.8284]
[1723815003474,3.82735,2612.8,2611.9,2.2748]
[1723815003620,3.82801,2612.4,2611.9,2.2748]
[1723815003818,0.382735,2612.7,2611.9,6.10334]
[1723815003819,3.82759,2612.7,2611.9,6.10334]
[1723815004056,0.72843845,2614.7,2612.5,2.3424]
[1723815004057,3.82671,2613.3,2612.5,2.3424]
[1723815004218,2.4493,2613.5,2612.5,2.3424]
[1723815004219,4.591607,2613.5,2612.6,3.8275]
[1723815004434,2.4553,2614.1,2613.0,2.325]
[1723815004731,3.82621,2613.6,2613.0,2.325]
[1723815004953,2.4553,2614.1,2613.0,6.15193]
[1723815004954,3.82602,2613.7,2613.0,6.15193]
[1723815005157,3.82592,2613.8,2613.0,6.15193]
[1723815005158,4.591344,2613.6,2613.1,0.55]
[1723815005465,3.82615,2613.6,2613.1,0.55]
[1723815005675,2.4553,2614.1,2613.1,0.55]
[1723815005676,3.82672,2613.2,2613.1,0.55]
[1723815005882,3.82672,2613.2,2612.4,3.82785]
[1723815005883,0.382672,2613.2,2611.8,0.74423893]
[1723815006043,7.65625,2612.3,2611.9,2.4718]
[1723815006393,7.65625,2612.3,2611.6,3.82895]
[1723815006394,3.82863,2611.9,2611.6,2.3558]
[1723815006679,3.82863,2611.9,2611.2,2.3558]
[1723815006834,3.82892,2611.7,2611.2,2.3558]
[1723815007179,3.82907,2611.6,2610.6,2.2679]
[1723815007321,3.83015,2610.9,2610.6,2.2679]
[1723815007532,3.82868,2611.9,2610.1,0.3841]
[1723815007533,2.2557,2612.1,2611.0,2.3222]
[1723815007723,3.8288,2611.8,2611.1,3.82979]
[1723815008053,3.82873,2611.9,2611.1,3.82976]
[1723815008272,3.82893,2611.7,2611.1,3.82966]
[1723815008438,3.82893,2611.7,2611.0,2.3222]
[1723815008778,3.82925,2611.5,2611.0,2.3222]
[1723815009354,3.82975,2611.2,2610.7,2.3593]
[1723815009565,3.82941,2611.4,2610.3,0.421512]
[1723815009566,3.82946,2611.4,2610.3,0.421512]
[1723815009775,3.83024,2610.8,2610.3,2.3593]
[1723815009973,3.82959,2611.3,2610.3,6.19019]
[1723815009974,3.82996,2611.0,2610.3,6.19019]
[1723815010271,2.4958,2611.7,2610.4,3.83077]
[1723815010492,3.82976,2611.2,2610.4,3.83077]
[1723815010761,3.82976,2611.2,2610.3,2.3593]
[1723815010762,3.82971,2611.2,2610.6,3.83053]
[1723815010963,3.82953,2611.3,2610.3,2.3593]
[1723815011269,3.82912,2611.6,2610.3,2.3593]
[1723815011568,2.4958,2611.7,2610.3,2.3593]
[1723815011780,3.82965,2611.2,2610.5,3.83058]
[1723815011926,3.82948,2611.4,2610.8,2.4087]
[1723815012123,3.82947,2611.4,2610.8,2.4087]
[1723815012364,3.82913,2611.6,2610.8,2.4087]
[1723815012365,3.82913,2611.6,2610.9,3.83]
[1723815012671,3.82965,2611.2,2611.0,3.0]
[1723815012826,3.82965,2611.2,2611.1,0.55]
[1723815013024,3.82965,2611.2,2610.8,2.4087]
[1723815013025,3.82965,2611.2,2610.9,3.55]
[1723815013227,0.22557,2612.2,2610.3,2.3801]
[1723815013228,3.82995,2611.0,2610.3,2.3801]
[1723815013484,3.83034,2610.8,2610.3,5.3801]
[1723815013634,3.83001,2611.0,2610.3,6.21097]
[1723815013939,2.3922,2611.4,2610.2,3.0]
[1723815013940,3.82948,2611.4,2610.5,6.24057]
[1723815014244,3.82936,2611.4,2610.7,7.66055]
[1723815014450,3.82885,2611.8,2610.9,3.83]
[1723815014689,0.22557,2612.2,2611.1,2.41]
[1723815014690,4.05383,2612.2,2611.1,2.41]
[1723815014979,4.4818252,2613.0,2611.1,2.41]
[1723815014980,3.82738,2612.8,2612.1,2.4658]
[1723815015212,6.7332452,2613.0,2612.1,2.4658]
[1723815015213,3.8271,2613.0,2612.3,3.82802]
[1723815015335,3.82653,2613.4,2612.6,3.8275]
[1723815015530,3.82621,2613.6,2612.7,9.29316]
[1723815015730,3.82638,2613.5,2612.8,0.55]
[1723815016031,3.82633,2613.5,2612.8,0.55]
[1723815016344,3.82669,2613.3,2612.8,0.55]
[1723815017094,6.0773,2613.8,2612.8,0.55]
[1723815017095,3.82495,2614.5,2613.3,2.308]
[1723815017379,3.82552,2614.1,2613.4,1.16347]
[1723815017580,3.82556,2614.0,2613.5,0.07651642]
[1723815017786,3.82599,2613.7,2613.6,0.55]
[1723815017957,3.82554,2614.1,2613.6,0.55]
[1723815018175,3.82542,2614.1,2613.5,0.55]
[1723815018586,3.82571,2613.9,2613.5,0.55]
[1723815018749,3.826,2613.7,2613.5,0.55]
[1723815018947,3.82571,2613.9,2613.5,0.55]
[1723815019378,3.82608,2613.7,2613.5,0.55]
[1723815019560,2.4357,2613.9,2612.4,6.31457]
[1723815019774,3.82637,2613.5,2612.8,3.82727]
[1723815020090,3.82571,2613.9,2613.2,2.3085]
[1723815020258,3.82586,2613.8,2613.2,2.53935]
[1723815020586,3.82586,2613.8,2613.2,2.3085]
[1723815020794,3.82564,2614.0,2613.2,2.3085]
[1723815020948,3.82564,2614.0,2613.3,0.6265177]
[1723815021143,3.82589,2613.8,2613.3,0.55]
[1723815021342,3.82623,2613.6,2613.3,3.55]
[1723815021586,0.382589,2613.7,2613.3,0.55]
[1723815021796,3.82643,2613.4,2613.3,0.55]
[1723815021948,7.65286,2613.4,2613.3,0.55]
[1723815022149,7.65286,2613.4,2612.4,2.4873]
[1723815022150,3.82739,2612.8,2612.4,2.4873]
[1723815022410,2.3117,2613.1,2611.9,0.3841]
[1723815022595,3.82766,2612.6,2611.8,3.8287]
[1723815022796,3.82766,2612.6,2611.9,2.2627]
[1723815023094,3.82802,2612.4,2611.9,2.2627]
[1723815023302,3.82768,2612.6,2611.9,2.2627]
[1723815023504,2.3117,2613.1,2611.9,2.2627]
[1723815023791,3.82783,2612.5,2611.9,2.2627]
[1723815024008,3.82805,2612.3,2611.9,2.2627]
[1723815024151,3.82833,2612.1,2611.5,5.3927]
[1723815024352,3.82812,2612.3,2611.5,9.22188]
[1723815024552,3.82844,2612.1,2611.6,3.0]
[1723815024749,3.82828,2612.2,2611.6,3.0]
[1723815025094,3.82758,2612.7,2611.8,2.4365]
[1723815025363,3.82827,2612.2,2611.8,2.4365]
[1723815025523,3.82815,2612.3,2611.8,2.4365]
[1723815025809,0.23117,2613.0,2611.8,2.4365]
[1723815025810,3.8279,2612.4,2611.8,2.4365]
[1723815025971,0.765571,2612.4,2611.5,2.3147]
[1723815026168,3.82893,2611.7,2611.5,2.3147]
[1723815026420,3.82875,2611.9,2611.5,2.3147]
[1723815026711,3.8281,2612.3,2611.5,6.14391]
[1723815026914,3.82822,2612.2,2611.5,2.3147]
[1723815027127,3.82833,2612.1,2611.5,2.3147]
[1723815027279,0.38281,2612.2,2611.5,2.3147]
[1723815027474,3.82783,2612.5,2611.5,5.39127357]
[1723815027681,3.82799,2612.4,2611.7,3.8289]
[1723815027975,3.82783,2612.5,2611.8,3.55]
[1723815028208,3.82783,2612.5,2611.9,2.2904]